[Event "IM Marmaris Karia IX 2019"]
[Site "Marmaris"]
[Date "2019.08.23"]
[Round "1.2"]
[White "Karaoglan, Doruk"]
[Black "Annageldyev, Orazly"]
[Result "1/2-1/2"]
[ECO "B24"]
[WhiteElo "2246"]
[BlackElo "2342"]
[Annotator "NA"]
[PlyCount "122"]
[EventDate "2019.08.24"]
[EventType "schev"]
[EventCountry "TUR"]
[SourceTitle "playchess.com"]
[Source "ChessBase"]
[SourceQuality "1"]
[TimeControl "5400+30"]

1. e4 {[%emt 0:00:30]} c5 {[%emt 0:00:30]} 2. Nc3 {[%emt 0:00:00]} e6 {[%emt 0:00:30]} 3. g3 {[%emt 0:00:00]} Nc6 {[%emt 0:00:00]} 4. Bg2 {[%emt 0:00:00]} Nf6 {[%emt 0:00:00]} 5. d3 {[%emt 0:00:00]} d5 {[%emt 0:01:30]} 6. exd5 {[%emt 0:00:30]} Nxd5 {[%emt 0:00:30]} 7. Nxd5 {[%emt 0:06:30]} exd5 {[%emt 0:00:30]} 8. Ne2 $11 {[%emt 0:00:30]} Be7 {[%emt 0:02:30]} 9. Nf4 {[%emt 0:04:30]} d4 {[%emt 0:01:30]} 10. Bxc6+ {[%emt 0:01:30]} bxc6 {[%emt 0:00:30]} 11. O-O {[%emt 0:03:30]} O-O {[%emt 0:04:30]} 12. Qf3 {[%emt 0:13:30]} Qd6 {[%emt 0:04:30]} 13. Re1 {[%emt 0:05:30]} Bd7 {[%emt 0:01:30]} 14. b3 {[%emt 0:05:30]} Rae8 {[%emt 0:05:30]} 15. a4 {[%emt 0:09:30]} Qf6 {[%emt 0:02:30]} 16. Qh5 {[%emt 0:05:30]} g6 {[%emt 0:04:30]} 17. Qh6 {[%emt 0:01:30]} Qf5 {[%emt 0:00:30]} 18. Ng2 {[%emt 0:07:30]} Be6 {[%emt 0:15:30]} 19. Qf4 {[%emt 0:12:30]} Qd5 {[%emt 0:10:30]} 20. Qe4 {[%emt 0:02:55]} Qxe4 {[%emt 0:02:30]} 21. Rxe4 {[%emt 0:00:05]} Bd5 {[%emt 0:02:30]} 22. Re1 {[%emt 0:00:27]} g5 {[%emt 0:01:30]} 23. Ba3 {[%emt 0:07:00]} Bd6 {[%emt 0:02:30]} 24. Rxe8 {[%emt 0:02:40]} Rxe8 {[%emt 0:00:30]} 25. Re1 {[%emt 0:00:01]} Rxe1+ {[%emt 0:05:30]} 26. Nxe1 {[%emt 0:00:30]} Kg7 {[%emt 0:04:30]} 27. Kf1 {[%emt 0:01:40]} Kf6 {[%emt 0:03:30]} 28. Ke2 {[%emt 0:00:42]} g4 {[%emt 0:00:30]} 29. f4 {[%emt 0:03:14]} Ke6 {[%emt 0:03:30]} 30. Kf2 {[%emt 0:01:55]} h5 {[%emt 0:02:51]} 31. Ke2 {[%emt 0:00:38]} Kf5 {[%emt 0:02:59]} 32. Kf2 {[%emt 0:00:31]} h4 {[%emt 0:01:05]} 33. Ng2 {[%emt 0:01:09]} h3 {[%emt 0:01:36]} 34. Ne1 {[%emt 0:00:03]} Ke6 {[%emt 0:01:28]} 35. Kg1 {[%emt 0:00:32]} Be7 {[%emt 0:01:19]} 36. Kf2 {[%emt 0:00:44]} Kd6 {[%emt 0:01:06]} 37. Bc1 {[%emt 0:00:11]} Bd8 {[%emt 0:00:46]} 38. Bd2 {[%emt 0:00:27]} f5 {[%emt 0:00:17]} 39. Ke2 {[%emt 0:00:36]} Kd7 {[%emt 0:01:55]} 40. Kf2 {[%emt 0:01:04]} Kc8 {[%emt 0:00:20]} 41. Bc1 {[%emt 0:02:06]} Kd7 {[%emt 0:00:52]} 42. Bd2 {[%emt 0:00:06]} Kd6 {[%emt 0:00:15]} 43. Ke2 {[%emt 0:00:18]} Bb6 {[%emt 0:01:29]} 44. Kf2 {[%emt 0:00:41]} Kd7 {[%emt 0:00:06]} 45. Ke2 {[%emt 0:00:49]} Kc8 {[%emt 0:00:35]} 46. Bc1 {[%emt 0:00:42]} Kc7 {[%emt 0:00:23]} 47. Kf1 {[%emt 0:01:43]} Ba5 {[%emt 0:00:08]} 48. Ke2 {[%emt 0:00:34]} Kb6 {[%emt 0:00:09]} 49. Kf2 {[%emt 0:00:21]} Bc3 {[%emt 0:00:13]} 50. Ke2 {[%emt 0:00:17]} Be6 {[%emt 0:01:31]} 51. Ba3 {[%emt 0:00:52]} Bc8 {[%emt 0:00:10]} 52. Kd1 {[%emt 0:00:20]} Be6 {[%emt 0:00:42]} 53. Ke2 {[%emt 0:00:03]} Bd5 {[%emt 0:00:11]} 54. Bc1 {[%emt 0:00:30]} Bb4 {[%emt 0:00:22]} 55. Kf2 {[%emt 0:00:24]} Be6 {[%emt 0:00:18]} 56. Ke2 {[%emt 0:00:14]} Bc8 {[%emt 0:00:05]} 57. Kd1 {[%emt 0:00:32]} Ba6 {[%emt 0:00:10]} 58. Ke2 {[%emt 0:00:07]} Bb5 {[%emt 0:00:23]} 59. axb5 {[%emt 0:01:55]} cxb5 {[%emt 0:00:08]} 60. c4 {[%emt 0:00:03]} Bxe1 {[%emt 0:04:19]} 61. Kxe1 {[%emt 0:00:30]} b4 {[%emt 0:01:31]} 1/2-1/2

[Event "IM Marmaris Karia IX 2019"]
[Site "Marmaris"]
[Date "2019.08.23"]
[Round "1.4"]
[White "Oney, Feridun"]
[Black "Guseynov, Alihan"]
[Result "0-1"]
[ECO "A05"]
[WhiteElo "2054"]
[BlackElo "2314"]
[Annotator "ChessBase"]
[PlyCount "92"]
[EventDate "2019.08.24"]
[EventType "schev"]
[EventCountry "TUR"]
[SourceTitle "playchess.com"]
[Source "ChessBase"]
[SourceQuality "1"]
[TimeControl "5400+30"]

1. Nf3 {[%emt 0:00:30]} c5 {[%emt 0:01:30]} 2. g3 {[%emt 0:01:30]} Nc6 {[%emt 0:00:30]} 3. Bg2 {[%emt 0:00:30]} g6 {[%emt 0:02:30]} 4. O-O {[%emt 0:11:30]} Bg7 {[%emt 0:00:30]} 5. e4 {[%emt 0:00:30]} Nf6 {[%emt 0:01:30]} 6. Re1 {[%emt 0:01:30]} O-O {[%emt 0:05:30]} 7. d3 {[%emt 0:03:30]} d6 {[%emt 0:04:30]} 8. c3 {[%emt 0:04:30]} Rb8 {[%emt 0:11:30]} 9. h3 {[%emt 0:07:30]} Nd7 {[%emt 0:05:30]} 10. Nbd2 {[%emt 0:10:30]} b5 {[%emt 0:02:30]} 11. Nf1 {[%emt 0:04:30]} b4 {[%emt 0:05:30]} 12. c4 {[%emt 0:00:30]} Nde5 {[%emt 0:10:30]} 13. Nh4 {[%emt 0:10:30]} Nd4 {[%emt 0:03:30]} 14. f4 {[%emt 0:01:30]} Nec6 {[%emt 0:00:30]} 15. Ne3 {[%emt 0:00:00]} b3 {[%emt 0:08:30]} 16. a3 {[%emt 0:01:00]} Nc2 {[%emt 0:02:30]} 17. Nxc2 {[%emt 0:00:30]} bxc2 {[%emt 0:00:30]} 18. Qxc2 {[%emt 0:00:30]} Nd4 {[%emt 0:00:30]} 19. Qd1 {[%emt 0:02:30]} Nb3 {[%emt 0:04:30]} 20. Rb1 {[%emt 0:00:30]} Nxc1 {[%emt 0:04:30]} 21. Qxc1 {[%emt 0:00:30]} Rb3 {[%emt 0:01:30]} 22. Qc2 {[%emt 0:06:30]} Qb6 {[%emt 0:01:30]} 23. e5 {[%emt 0:01:30]} dxe5 {[%emt 0:00:30]} 24. fxe5 {[%emt 0:00:30]} Rd8 {[%emt 0:05:18]} 25. Bf1 {[%emt 0:00:30]} Be6 {[%emt 0:03:18]} 26. Nf3 {[%emt 0:01:30]} Bf5 {[%emt 0:03:05]} 27. Nd2 {[%emt 0:06:30]} Rbxd3 {[%emt 0:01:44]} 28. Bxd3 {[%emt 0:00:30]} Rxd3 {[%emt 0:06:01]} 29. Ne4 {[%emt 0:01:30]} Rxg3+ {[%emt 0:00:26]} 30. Kf2 {[%emt 0:00:30]} Bxe5 {[%emt 0:01:54]} 31. Re3 {[%emt 0:01:30]} Rxe3 {[%emt 0:01:42]} 32. Kxe3 {[%emt 0:00:30]} Qe6 {[%emt 0:01:18]} 33. Rd1 {[%emt 0:00:44]} Bd4+ {[%emt 0:00:36]} 34. Rxd4 {[%emt 0:00:16]} cxd4+ {[%emt 0:00:02]} 35. Kxd4 {[%emt 0:00:30]} f6 {[%emt 0:01:00]} 36. c5 {[%emt 0:00:30]} Qe5+ {[%emt 0:00:14]} 37. Ke3 {[%emt 0:00:30]} Bxe4 {[%emt 0:00:36]} 38. Qxe4 {[%emt 0:00:30]} Qxc5+ {[%emt 0:00:04]} 39. Qd4 {[%emt 0:00:30]} Qxd4+ {[%emt 0:00:39]} 40. Kxd4 {[%emt 0:00:30]} e5+ {[%emt 0:00:19]} 41. Kd5 {[%emt 0:00:00]} Kf7 {[%emt 0:00:09]} 42. b4 {[%emt 0:00:00]} Ke7 {[%emt 0:00:34]} 43. b5 {[%emt 0:00:30]} Kd7 {[%emt 0:00:08]} 44. a4 {[%emt 0:00:00]} g5 {[%emt 0:00:31]} 45. a5 {[%emt 0:00:00]} Kc7 {[%emt 0:00:15]} 46. Ke4 {[%emt 0:01:30]} Kd6 {[%emt 0:00:57]} 0-1

[Event "IM Marmaris Karia IX 2019"]
[Site "Marmaris"]
[Date "2019.08.23"]
[Round "1.5"]
[White "Kirilmaz, Emre"]
[Black "Datuashvili, Nona"]
[Result "1-0"]
[ECO "D00"]
[WhiteElo "2044"]
[BlackElo "2083"]
[Annotator "NA"]
[PlyCount "69"]
[EventDate "2019.08.24"]
[EventType "schev"]
[EventCountry "TUR"]
[SourceTitle "playchess.com"]
[Source "ChessBase"]
[SourceQuality "1"]
[TimeControl "5400+30"]

1. d4 {[%emt 0:01:30]} d5 {[%emt 0:00:30]} 2. c3 {[%emt 0:00:30]} Nf6 {[%emt 0:00:00]} 3. Bg5 {[%emt 0:00:00]} Ne4 {[%emt 0:00:00]} 4. Bf4 {[%emt 0:00:00]} g6 {[%emt 0:01:30]} 5. Nd2 {[%emt 0:00:30]} Nxd2 {[%emt 0:00:30]} 6. Qxd2 {[%emt 0:00:30]} Bg7 {[%emt 0:00:30]} 7. Bh6 {[%emt 0:00:30]} Bxh6 {[%emt 0:04:30]} 8. Qxh6 $14 {[%emt 0:05:30]} Qd6 {[%emt 0:00:30]} 9. Qg7 {[%emt 0:08:30]} Rf8 {[%emt 0:01:30]} 10. Qxh7 {[%emt 0:01:30]} Qb6 {[%emt 0:00:30]} 11. O-O-O {[%emt 0:01:30]} Qf6 {[%emt 0:00:30]} 12. Qh6 {[%emt 0:00:30]} Qxf2 {[%emt 0:02:30]} 13. Nf3 {[%emt 0:00:30]} Bf5 {[%emt 0:01:30]} 14. Rd2 {[%emt 0:00:30]} Nd7 {[%emt 0:06:30]} 15. e3 {[%emt 0:00:30]} Qxd2+ {[%emt 0:00:30]} 16. Kxd2 {[%emt 0:00:00]} Nf6 {[%emt 0:00:30]} 17. Bd3 {[%emt 0:00:00]} O-O-O {[%emt 0:06:30]} 18. Qf4 {[%emt 0:02:30]} e6 {[%emt 0:01:30]} 19. Rc1 {[%emt 0:00:30]} Rh8 {[%emt 0:10:30]} 20. h4 {[%emt 0:00:30]} Rh5 {[%emt 0:10:30]} 21. c4 {[%emt 0:01:30]} c6 {[%emt 0:02:30]} 22. Ne5 {[%emt 0:05:30]} Rh7 {[%emt 0:11:30]} 23. g4 {[%emt 0:01:30]} Rxh4 {[%emt 0:05:30]} 24. Qg3 {[%emt 0:00:30]} Rdh8 {[%emt 0:04:30]} 25. gxf5 {[%emt 0:02:30]} Rh2+ {[%emt 0:00:30]} 26. Kc3 {[%emt 0:00:30]} dxc4 {[%emt 0:00:30]} 27. Nxc4 {[%emt 0:01:30]} R8h3 {[%emt 0:08:33]} 28. Qd6 {[%emt 0:00:30]} Nd5+ {[%emt 0:01:52]} 29. Kb3 {[%emt 0:00:30]} gxf5 {[%emt 0:00:48]} 30. Qf8+ {[%emt 0:00:30]} Kd7 {[%emt 0:00:24]} 31. Ne5+ {[%emt 0:01:30]} Kc7 {[%emt 0:00:01]} 32. Qxf7+ {[%emt 0:00:30]} Kb6 {[%emt 0:00:14]} 33. Nc4+ {[%emt 0:00:00]} Ka6 {[%emt 0:00:02]} 34. Nd6+ {[%emt 0:00:00]} Ka5 {[%emt 0:00:01]} 35. Rc5+ 1-0

[Event "IM Marmaris Karia IX 2019"]
[Site "Marmaris"]
[Date "2019.08.24"]
[Round "2.1"]
[White "Annageldyev, Orazly"]
[Black "Tanriverdi, Enes"]
[Result "0-1"]
[ECO "E59"]
[WhiteElo "2342"]
[BlackElo "2355"]
[Annotator "NA"]
[PlyCount "60"]
[EventDate "2019.08.24"]
[EventType "schev"]
[EventCountry "TUR"]
[SourceTitle "playchess.com"]
[Source "ChessBase"]
[SourceQuality "1"]
[TimeControl "5400+30"]

1. d4 {[%emt 0:00:30]} Nf6 {[%emt 0:00:30]} 2. Nf3 {[%emt 0:00:00]} e6 {[%emt 0:00:30]} 3. c4 {[%emt 0:00:00]} d5 {[%emt 0:00:30]} 4. Nc3 {[%emt 0:00:30]} Bb4 {[%emt 0:00:30]} 5. e3 {[%emt 0:00:30]} O-O {[%emt 0:01:30]} 6. Bd3 {[%emt 0:00:00]} c5 {[%emt 0:00:30]} 7. O-O {[%emt 0:00:00]} Nc6 {[%emt 0:00:30]} 8. a3 {[%emt 0:01:30]} Bxc3 {[%emt 0:00:30]} 9. bxc3 {[%emt 0:00:30]} dxc4 {[%emt 0:00:30]} 10. Bxc4 {[%emt 0:00:00]} Qc7 {[%emt 0:05:30]} 11. Qe2 {[%emt 0:10:00]} e5 {[%emt 0:06:30]} 12. h3 {[%emt 0:04:30]} Re8 {[%emt 0:08:30]} 13. Bb2 {[%emt 0:09:30]} h6 {[%emt 0:14:30]} 14. a4 {[%emt 0:09:30]} a6 {[%emt 0:08:30]} 15. Ba2 {[%emt 0:07:30]} Bf5 {[%emt 0:06:30]} 16. d5 {[%emt 0:06:30]} Nb8 {[%emt 0:05:30]} 17. c4 {[%emt 0:00:30]} Nbd7 {[%emt 0:00:00]} 18. Bb1 {[%emt 0:01:30]} e4 {[%emt 0:01:00]} 19. Ne1 {[%emt 0:12:30]} Ne5 {[%emt 0:02:30]} 20. f4 {[%emt 0:09:30]} exf3 {[%emt 0:03:30]} 21. Nxf3 {[%emt 0:00:30]} Nxf3+ {[%emt 0:00:30]} 22. Qxf3 {[%emt 0:00:30]} Bxb1 {[%emt 0:00:30]} 23. Bxf6 {[%emt 0:03:30]} Be4 {[%emt 0:00:30]} 24. Qg4 {[%emt 0:03:28]} Bg6 {[%emt 0:00:30]} 25. Bb2 {[%emt 0:01:56]} Rxe3 {[%emt 0:00:30]} 26. Rae1 {[%emt 0:02:28]} Rae8 {[%emt 0:02:30]} 27. Rxe3 {[%emt 0:00:09]} Rxe3 {[%emt 0:00:00]} 28. Rd1 {[%emt 0:07:04]} Qd6 {[%emt 0:01:00]} 29. Qc8+ {[%emt 0:00:18]} Kh7 {[%emt 0:00:00]} 30. Qxb7 {[%emt 0:00:11]} Qg3 {[%emt 0:01:00]} 0-1

[Event "IM Marmaris Karia IX 2019"]
[Site "Marmaris"]
[Date "2019.08.24"]
[Round "2.2"]
[White "Papenin, Nikolai"]
[Black "Karaoglan, Doruk"]
[Result "0-1"]
[ECO "E70"]
[WhiteElo "2319"]
[BlackElo "2246"]
[Annotator "NA"]
[PlyCount "66"]
[EventDate "2019.08.24"]
[EventType "schev"]
[EventCountry "TUR"]
[SourceTitle "playchess.com"]
[Source "ChessBase"]
[SourceQuality "1"]
[TimeControl "5400+30"]

1. d4 {[%emt 0:00:30]} Nf6 {[%emt 0:00:30]} 2. c4 {[%emt 0:00:00]} g6 {[%emt 0:00:00]} 3. Nc3 {[%emt 0:00:00]} Bg7 {[%emt 0:00:00]} 4. e4 {[%emt 0:00:30]} d6 {[%emt 0:00:30]} 5. Bd3 {[%emt 0:00:00]} O-O {[%emt 0:00:00]} 6. Nge2 {[%emt 0:00:00]} Nc6 {[%emt 0:00:00]} 7. O-O {[%emt 0:00:00]} e5 {[%emt 0:00:30]} 8. d5 {[%emt 0:00:00]} Nd4 {[%emt 0:00:00]} 9. Nxd4 {[%emt 0:00:30]} exd4 {[%emt 0:00:00]} 10. Ne2 {[%emt 0:00:00]} Re8 {[%emt 0:02:30]} 11. f3 {[%emt 0:00:00]} Nd7 {[%emt 0:00:30]} 12. Rb1 {[%emt 0:08:30]} a5 {[%emt 0:15:30]} 13. Bc2 {[%emt 0:03:30]} Qf6 {[%emt 0:05:30]} 14. b3 {[%emt 0:02:30]} c5 {[%emt 0:05:30]} 15. a4 {[%emt 0:09:30]} Qh4 {[%emt 0:08:30]} 16. Bd2 {[%emt 0:05:30]} Ne5 {[%emt 0:06:30]} 17. Be1 {[%emt 0:02:30]} Qh6 {[%emt 0:06:30]} 18. Kh1 {[%emt 0:10:30]} f5 {[%emt 0:12:30]} 19. Bg3 {[%emt 0:04:30]} Rf8 {[%emt 0:08:30]} 20. Nf4 {[%emt 0:20:30]} g5 {[%emt 0:00:30]} 21. Nd3 {[%emt 0:00:30]} f4 {[%emt 0:01:30]} 22. Be1 {[%emt 0:07:30]} g4 {[%emt 0:11:17]} 23. Qe2 {[%emt 0:01:30]} g3 {[%emt 0:02:19]} 24. h3 {[%emt 0:00:30]} Rf6 {[%emt 0:04:03]} 25. Nxe5 {[%emt 0:02:30]} dxe5 {[%emt 0:00:56]} 26. Kg1 {[%emt 0:00:30]} Qh4 {[%emt 0:00:14]} 27. Bd3 {[%emt 0:08:51]} Rh6 {[%emt 0:00:21]} 28. Rb2 {[%emt 0:02:11]} Raa6 {[%emt 0:00:15]} 29. Bd2 {[%emt 0:01:13]} Rag6 {[%emt 0:01:10]} 30. Be1 {[%emt 0:00:44]} Qh5 {[%emt 0:00:28]} 31. Bxa5 {[%emt 0:01:59]} Bxh3 {[%emt 0:00:25]} 32. gxh3 {[%emt 0:00:07]} g2 {[%emt 0:00:03]} 33. Qxg2 {[%emt 0:01:19]} Qxh3 {[%emt 0:00:15]} 0-1

[Event "IM Marmaris Karia IX 2019"]
[Site "Marmaris"]
[Date "2019.08.24"]
[Round "2.3"]
[White "Guseynov, Alihan"]
[Black "Kizilkus, Akin"]
[Result "1/2-1/2"]
[ECO "A16"]
[WhiteElo "2314"]
[BlackElo "2135"]
[Annotator "NA"]
[PlyCount "86"]
[EventDate "2019.08.24"]
[EventType "schev"]
[EventCountry "TUR"]
[SourceTitle "playchess.com"]
[Source "ChessBase"]
[SourceQuality "1"]
[TimeControl "5400+30"]

1. c4 {[%emt 0:00:30]} Nf6 {[%emt 0:00:30]} 2. Nc3 {[%emt 0:00:00]} g6 {[%emt 0:00:00]} 3. g3 {[%emt 0:00:00]} d5 {[%emt 0:00:00]} 4. cxd5 {[%emt 0:00:30]} Nxd5 {[%emt 0:00:30]} 5. Bg2 {[%emt 0:01:30]} Nb6 {[%emt 0:01:30]} 6. d3 {[%emt 0:04:30]} Bg7 {[%emt 0:00:30]} 7. Be3 {[%emt 0:00:30]} O-O {[%emt 0:03:30]} 8. Qd2 {[%emt 0:02:30]} N8d7 {[%emt 0:03:30]} 9. Bh6 {[%emt 0:05:30]} Nf6 {[%emt 0:01:30]} 10. Nf3 {[%emt 0:04:30]} Re8 {[%emt 0:06:30]} 11. Bxg7 {[%emt 0:03:30]} Kxg7 {[%emt 0:00:30]} 12. d4 {[%emt 0:06:30]} c6 {[%emt 0:07:30]} 13. O-O {[%emt 0:03:30]} Bf5 {[%emt 0:03:30]} 14. Ne5 {[%emt 0:09:30]} Nfd7 {[%emt 0:12:30]} 15. f4 {[%emt 0:20:30]} f6 {[%emt 0:08:30]} 16. e4 {[%emt 0:08:30]} fxe5 {[%emt 0:08:30]} 17. exf5 {[%emt 0:00:30]} exd4 {[%emt 0:00:00]} 18. Qxd4+ {[%emt 0:06:30]} Nf6 {[%emt 0:00:00]} 19. Qxd8 {[%emt 0:06:10]} Raxd8 {[%emt 0:00:30]} 20. fxg6 {[%emt 0:00:10]} hxg6 {[%emt 0:00:00]} 21. Rae1 {[%emt 0:11:31]} Rd2 {[%emt 0:05:00]} 22. Rf2 {[%emt 0:00:54]} Rxf2 {[%emt 0:02:30]} 23. Kxf2 {[%emt 0:00:02]} e5 {[%emt 0:00:00]} 24. Bf3 {[%emt 0:03:27]} exf4 {[%emt 0:00:00]} 25. gxf4 {[%emt 0:00:06]} Rxe1 {[%emt 0:02:30]} 26. Kxe1 {[%emt 0:00:02]} Nbd5 {[%emt 0:11:30]} 27. Nxd5 {[%emt 0:00:33]} Nxd5 {[%emt 0:01:30]} 28. Bxd5 {[%emt 0:00:04]} cxd5 {[%emt 0:00:30]} 29. Ke2 {[%emt 0:00:12]} Kf6 {[%emt 0:00:00]} 30. Ke3 {[%emt 0:00:13]} Kf5 {[%emt 0:00:00]} 31. b4 {[%emt 0:02:20]} d4+ {[%emt 0:01:30]} 32. Kxd4 {[%emt 0:00:24]} Kxf4 {[%emt 0:00:30]} 33. Kd5 {[%emt 0:00:39]} Kg4 {[%emt 0:00:30]} 34. Ke5 {[%emt 0:00:33]} Kh3 {[%emt 0:00:30]} 35. Kf6 {[%emt 0:00:06]} Kxh2 {[%emt 0:00:30]} 36. Kxg6 {[%emt 0:00:09]} Kg3 {[%emt 0:00:30]} 37. Kf5 {[%emt 0:00:14]} Kf3 {[%emt 0:00:30]} 38. Ke5 {[%emt 0:00:02]} Ke3 {[%emt 0:00:00]} 39. Kd6 {[%emt 0:01:59]} Kd4 {[%emt 0:00:00]} 40. Kc7 {[%emt 0:00:31]} Kc4 {[%emt 0:00:30]} 41. Kxb7 {[%emt 0:00:35]} Kxb4 {[%emt 0:00:30]} 42. Kxa7 {[%emt 0:00:06]} Ka3 {[%emt 0:00:00]} 43. Kb6 {[%emt 0:00:05]} Kxa2 {[%emt 0:00:00]} 1/2-1/2

[Event "IM Marmaris Karia IX 2019"]
[Site "Marmaris"]
[Date "2019.08.24"]
[Round "2.4"]
[White "Datuashvili, Nona"]
[Black "Oney, Feridun"]
[Result "1-0"]
[ECO "B15"]
[WhiteElo "2083"]
[BlackElo "2054"]
[Annotator "NA"]
[PlyCount "99"]
[EventDate "2019.08.24"]
[EventType "schev"]
[EventCountry "TUR"]
[SourceTitle "playchess.com"]
[Source "ChessBase"]
[SourceQuality "1"]
[TimeControl "5400+30"]

1. e4 {[%emt 0:00:30]} c6 {[%emt 0:00:30]} 2. d4 {[%emt 0:00:30]} g6 {[%emt 0:00:30]} 3. Nc3 {[%emt 0:00:30]} d5 {[%emt 0:00:30]} 4. exd5 {[%emt 0:03:30]} cxd5 {[%emt 0:00:30]} 5. Nf3 {[%emt 0:00:30]} Nf6 {[%emt 0:02:30]} 6. Bf4 {[%emt 0:02:30]} a6 {[%emt 0:03:30]} 7. Qd2 {[%emt 0:06:30]} h6 {[%emt 0:07:30]} 8. Bd3 {[%emt 0:04:30]} Nc6 {[%emt 0:09:30]} 9. Ne5 {[%emt 0:13:30]} Bf5 {[%emt 0:02:30]} 10. Bxf5 {[%emt 0:02:30]} gxf5 {[%emt 0:00:00]} 11. f3 {[%emt 0:00:30]} Rc8 {[%emt 0:07:00]} 12. a3 {[%emt 0:08:30]} e6 {[%emt 0:09:30]} 13. Na4 {[%emt 0:11:30]} Nxe5 {[%emt 0:05:30]} 14. Bxe5 {[%emt 0:01:30]} Rg8 {[%emt 0:05:30]} 15. O-O {[%emt 0:07:30]} Nd7 {[%emt 0:04:30]} 16. Bf4 {[%emt 0:00:30]} h5 {[%emt 0:09:30]} 17. b4 {[%emt 0:02:30]} Nb6 {[%emt 0:10:06]} 18. Nc5 {[%emt 0:01:30]} Nc4 {[%emt 0:01:27]} 19. Qe2 {[%emt 0:00:30]} b6 {[%emt 0:04:48]} 20. Nxa6 {[%emt 0:10:30]} Qh4 {[%emt 0:00:34]} 21. Be5 {[%emt 0:00:31]} f4 {[%emt 0:05:08]} 22. c3 {[%emt 0:03:22]} f6 {[%emt 0:01:31]} 23. Bxf4 {[%emt 0:01:01]} Kf7 {[%emt 0:00:28]} 24. Bg3 {[%emt 0:01:30]} Rxg3 {[%emt 0:01:02]} 25. hxg3 {[%emt 0:00:12]} Qxg3 {[%emt 0:00:05]} 26. Rfe1 {[%emt 0:00:30]} e5 {[%emt 0:03:23]} 27. dxe5 {[%emt 0:00:26]} Nxe5 {[%emt 0:01:02]} 28. f4 {[%emt 0:02:08]} Ng4 {[%emt 0:01:01]} 29. Qf3 {[%emt 0:02:40]} Qh2+ {[%emt 0:00:54]} 30. Kf1 {[%emt 0:00:01]} Bd6 {[%emt 0:02:25]} 31. Qxd5+ {[%emt 0:08:01]} Kg7 {[%emt 0:00:04]} 32. Qb7+ {[%emt 0:00:47]} Rc7 {[%emt 0:00:57]} 33. Qf3 {[%emt 0:01:31]} Bxf4 {[%emt 0:00:58]} 34. Nxc7 {[%emt 0:00:36]} Bxc7 {[%emt 0:00:44]} 35. Re7+ {[%emt 0:00:34]} Kg6 {[%emt 0:01:15]} 36. Rxc7 {[%emt 0:01:29]} Qxc7 {[%emt 0:00:03]} 37. Ke2 {[%emt 0:01:10]} Ne5 {[%emt 0:00:34]} 38. Qe4+ {[%emt 0:00:24]} f5 {[%emt 0:00:14]} 39. Qd4 {[%emt 0:00:23]} Ng4 {[%emt 0:00:40]} 40. Rf1 {[%emt 0:00:47]} Qc6 {[%emt 0:00:20]} 41. Rf3 {[%emt 0:00:22]} Qe6+ {[%emt 0:00:21]} 42. Kd2 {[%emt 0:01:02]} Qa2+ {[%emt 0:00:21]} 43. Kd3 {[%emt 0:00:20]} Qxg2 {[%emt 0:00:19]} 44. Qd6+ {[%emt 0:00:42]} Kg5 {[%emt 0:00:41]} 45. Qe7+ {[%emt 0:00:28]} Kg6 {[%emt 0:00:23]} 46. Qe6+ {[%emt 0:00:10]} Kg5 {[%emt 0:00:11]} 47. Rxf5+ {[%emt 0:00:32]} Kh4 {[%emt 0:00:08]} 48. Qe7+ {[%emt 0:00:13]} Kg3 {[%emt 0:00:08]} 49. Qe1+ {[%emt 0:00:12]} Nf2+ {[%emt 0:00:17]} 50. Kd2 {[%emt 0:01:31]} 1-0

[Event "IM Marmaris Karia IX 2019"]
[Site "Marmaris"]
[Date "2019.08.24"]
[Round "2.5"]
[White "Benidze, Davit"]
[Black "Kirilmaz, Emre"]
[Result "1-0"]
[ECO "A07"]
[WhiteElo "2440"]
[BlackElo "2044"]
[Annotator "NA"]
[PlyCount "129"]
[EventDate "2019.08.24"]
[EventType "schev"]
[EventCountry "TUR"]
[SourceTitle "playchess.com"]
[Source "ChessBase"]
[SourceQuality "1"]
[TimeControl "5400+30"]

1. Nf3 {[%emt 0:00:30]} d5 {[%emt 0:01:30]} 2. g3 {[%emt 0:00:00]} c6 {[%emt 0:00:30]} 3. Bg2 {[%emt 0:00:00]} Bg4 {[%emt 0:00:00]} 4. Ne5 {[%emt 0:00:30]} Bf5 {[%emt 0:00:00]} 5. c4 {[%emt 0:00:00]} e6 {[%emt 0:00:00]} 6. O-O {[%emt 0:09:00]} Nd7 {[%emt 0:00:00]} 7. Nxd7 {[%emt 0:03:30]} Qxd7 {[%emt 0:00:30]} 8. d3 {[%emt 0:00:30]} Nf6 {[%emt 0:01:30]} 9. Nd2 {[%emt 0:01:30]} Bc5 {[%emt 0:10:30]} 10. cxd5 {[%emt 0:05:30]} exd5 {[%emt 0:02:30]} 11. e4 {[%emt 0:00:30]} dxe4 {[%emt 0:01:30]} 12. dxe4 {[%emt 0:00:30]} Bh3 {[%emt 0:04:30]} 13. Qc2 {[%emt 0:02:30]} Bxg2 {[%emt 0:06:30]} 14. Kxg2 {[%emt 0:00:30]} Bb6 {[%emt 0:00:30]} 15. Nc4 {[%emt 0:02:30]} O-O {[%emt 0:00:30]} 16. Nxb6 {[%emt 0:03:30]} axb6 {[%emt 0:02:30]} 17. f3 {[%emt 0:00:00]} Qe6 {[%emt 0:19:30]} 18. b3 {[%emt 0:10:00]} Rfd8 {[%emt 0:00:30]} 19. Be3 {[%emt 0:15:30]} b5 {[%emt 0:02:30]} 20. Rad1 {[%emt 0:00:30]} h5 {[%emt 0:13:30]} 21. h3 {[%emt 0:01:30]} h4 {[%emt 0:07:30]} 22. g4 {[%emt 0:03:30]} Qe5 {[%emt 0:03:30]} 23. Qf2 {[%emt 0:12:30]} g5 {[%emt 0:03:38]} 24. Rfe1 {[%emt 0:00:30]} Nh7 {[%emt 0:01:16]} 25. Bd4 {[%emt 0:00:30]} Qe6 {[%emt 0:00:45]} 26. Ba1 {[%emt 0:06:30]} f6 {[%emt 0:00:26]} 27. e5 {[%emt 0:01:55]} Rxd1 {[%emt 0:00:30]} 28. Rxd1 {[%emt 0:00:05]} fxe5 {[%emt 0:00:13]} 29. Re1 {[%emt 0:00:30]} Qg6 {[%emt 0:02:38]} 30. Rxe5 {[%emt 0:03:20]} Qb1 {[%emt 0:01:14]} 31. Bb2 {[%emt 0:00:02]} Rxa2 {[%emt 0:01:03]} 32. Re2 {[%emt 0:00:09]} Qd3 {[%emt 0:00:26]} 33. Rd2 {[%emt 0:00:31]} Qxb3 {[%emt 0:01:49]} 34. Qd4 {[%emt 0:01:01]} Rxb2 {[%emt 0:00:23]} 35. Rxb2 {[%emt 0:00:12]} Qf7 {[%emt 0:01:04]} 36. Re2 {[%emt 0:00:19]} Nf8 {[%emt 0:01:00]} 37. Qe5 {[%emt 0:00:55]} Qg7 {[%emt 0:00:45]} 38. Qc5 {[%emt 0:04:24]} Qf6 {[%emt 0:00:22]} 39. Qe7 {[%emt 0:07:34]} Qxe7 {[%emt 0:06:53]} 40. Rxe7 {[%emt 0:00:03]} Ng6 {[%emt 0:01:05]} 41. Rxb7 {[%emt 0:00:02]} Ne5 {[%emt 0:02:44]} 42. Re7 {[%emt 0:01:53]} Nd3 {[%emt 0:00:25]} 43. Re3 {[%emt 0:02:32]} Nf4+ {[%emt 0:00:11]} 44. Kh2 {[%emt 0:00:57]} b4 {[%emt 0:01:55]} 45. Re5 {[%emt 0:03:06]} Nd3 {[%emt 0:00:37]} 46. Re3 {[%emt 0:00:39]} Nc5 {[%emt 0:00:46]} 47. Re8+ {[%emt 0:00:15]} Kf7 {[%emt 0:00:13]} 48. Rc8 {[%emt 0:00:02]} b3 {[%emt 0:00:49]} 49. Rxc6 {[%emt 0:00:03]} Na4 {[%emt 0:00:42]} 50. f4 {[%emt 0:01:10]} gxf4 {[%emt 0:00:23]} 51. Kg2 {[%emt 0:00:05]} b2 {[%emt 0:00:27]} 52. Rc7+ {[%emt 0:00:03]} Ke6 {[%emt 0:00:10]} 53. Rb7 {[%emt 0:00:03]} Kd5 {[%emt 0:00:45]} 54. g5 {[%emt 0:00:31]} Ke6 {[%emt 0:00:25]} 55. Kf3 {[%emt 0:01:11]} Kf5 {[%emt 0:00:35]} 56. Rb5+ {[%emt 0:00:04]} Kg6 {[%emt 0:00:16]} 57. Kxf4 {[%emt 0:00:17]} Kh5 {[%emt 0:00:44]} 58. Kf5 {[%emt 0:00:49]} Nc3 {[%emt 0:00:46]} 59. Rxb2 {[%emt 0:00:02]} Nd5 {[%emt 0:00:18]} 60. g6 {[%emt 0:02:03]} Ne7+ {[%emt 0:00:22]} 61. Kf6 {[%emt 0:00:02]} Nxg6 {[%emt 0:00:13]} 62. Rb8 {[%emt 0:00:02]} Kh6 {[%emt 0:00:29]} 63. Rg8 {[%emt 0:00:07]} Kh5 {[%emt 0:00:04]} 64. Rg7 {[%emt 0:00:46]} Nf8 {[%emt 0:00:11]} 65. Rf7 {[%emt 0:00:56]} 1-0